fUST/lending_fUST_20240323
["ID","MTS","AMOUNT","RATE_DAILY","PERIOD"]
[320092544,1711150239218,-3440.28,0.00024657,2]
[320092546,1711150239227,-500.0,0.00024657,2]
[320092548,1711150239236,-500.0,0.00024657,2]
[320092550,1711150239245,-511.36,0.00024657,2]
[320092552,1711150239254,-546.52457957,0.00024657,2]
[320092554,1711150239263,-1365.53,0.00024657,2]
[320092556,1711150239272,-500.0,0.00024657,2]
[320092558,1711150239282,-2107.61,0.00024657,2]
[320092560,1711150239291,-500.0,0.00024657,2]
[320092562,1711150239300,-1320.71,0.00024657,2]
[320092564,1711150239309,-500.0,0.00024657,2]
[320092565,1711150239318,-19668.55,0.00024657,2]
[320092567,1711150239327,-500.0,0.00024657,2]
[320092569,1711150239336,-500.0,0.00024657,2]
[320092571,1711150239345,-1072.15,0.00024657,2]
[320092573,1711150239356,-500.0,0.00024657,2]
[320092576,1711150239367,-2899.07,0.00024657,2]
[320092578,1711150239377,-500.0,0.00024657,2]
[320092580,1711150239386,-500.0,0.00024657,2]
[320092581,1711150239399,-500.0,0.00024657,2]
[320092584,1711150239409,-1090.97,0.00024657,2]
[320092585,1711150239418,-1483.73,0.00024657,2]
[320092587,1711150239427,-500.0,0.00024657,2]
[320092589,1711150239437,-500.0,0.00024657,2]
[320092591,1711150239446,-500.0,0.00024657,2]
[320092593,1711150239456,-500.0,0.00024657,2]
[320092595,1711150239465,-500.0,0.00024657,2]
[320092597,1711150239474,-500.0,0.00024657,2]
[320092599,1711150239483,-500.0,0.00024657,2]
[320092601,1711150239492,-1359.64,0.00024657,2]
[320092603,1711150239501,-500.0,0.00024657,2]
[320092605,1711150239510,-500.0,0.00024657,2]
[320092607,1711150239519,-569.17,0.00024657,2]
[320092609,1711150239528,-500.0,0.00024657,2]
[320092611,1711150239537,-501.79,0.00024657,2]
[320092613,1711150239546,-14470.36,0.00024657,2]
[320092615,1711150239555,-500.0,0.00024657,2]
[320092617,1711150239564,-516.37168215,0.00024657,2]
[320092619,1711150239574,-408.19044783,0.00024657,2]
[320092621,1711150239583,-1860.0,0.00024657,2]
[320092623,1711150239592,-500.0,0.00024657,2]
[320092625,1711150239601,-500.0,0.00024657,2]
[320092627,1711150239610,-500.0,0.00024657,2]
[320092629,1711150239619,-1523.88,0.00024657,2]
[320092631,1711150239629,-500.0,0.00024657,2]
[320092633,1711150239638,-500.0,0.00024657,2]
[320092635,1711150239653,-15482.38,0.00024657,2]
[320092637,1711150239662,-500.0,0.00024657,2]
[320092639,1711150239671,-500.0,0.00024657,2]
[320092641,1711150239680,-500.0,0.00024657,2]
[320092643,1711150239690,-246.28499172,0.00024657,2]
[320092645,1711150239698,-500.0,0.00024657,2]
[320092647,1711150239707,-618.12,0.00024657,2]
[320092649,1711150239716,-1172.31,0.00024657,2]
[320092651,1711150239725,-500.0,0.00024657,2]
[320092653,1711150239735,-500.0,0.00024657,2]
[320092655,1711150239744,-500.0,0.00024657,2]
[320092657,1711150239752,-500.0,0.00024657,2]
[320092659,1711150239761,-500.0,0.00024657,2]
[320092661,1711150239770,-500.0,0.00024657,2]
[320092663,1711150239779,-1587.69,0.00024657,2]
[320092665,1711150239788,-500.0,0.00024657,2]
[320092667,1711150239797,-520.81521444,0.00024657,2]
[320092669,1711150239807,-17702.22,0.00024657,2]
[320092671,1711150239817,-500.0,0.00024657,2]
[320092673,1711150239826,-786.81,0.00024657,2]
[320092675,1711150239835,-500.0,0.00024657,2]
[320092677,1711150239845,-500.0,0.00024657,2]
[320092678,1711150239854,-500.0,0.00024657,2]
[320092681,1711150239864,-500.0,0.00024657,2]
[320092682,1711150239874,-500.0,0.00024657,2]
[320092684,1711150239885,-280.62819496,0.00024657,2]
[320092686,1711150239894,-500.0,0.00024657,2]
[320092688,1711150239907,-601.68428916,0.00024657,2]
[320092690,1711150239916,-500.0,0.00024657,2]
[320092692,1711150239925,-3860.25,0.00024657,2]
[320092694,1711150239935,-500.0,0.00024657,2]
[320092696,1711150239945,-3007.45,0.00024657,2]
[320092698,1711150239954,-1117.82,0.00024657,2]
[320092701,1711150239963,-500.0,0.00024657,2]
[320092702,1711150239972,-500.0,0.00024657,2]
[320092704,1711150239982,-500.0,0.00024657,2]
[320092706,1711150239991,-500.0,0.00024657,2]
[320092708,1711150240000,-21749.7,0.00024657,2]
[320092710,1711150240009,-500.0,0.00024657,2]
[320092712,1711150240018,-500.0,0.00024657,2]
[320092714,1711150240028,-500.0,0.00024657,2]
[320092716,1711150240037,-1289.75,0.00024657,2]
[320092718,1711150240046,-500.0,0.00024657,2]
[320092720,1711150240055,-500.0,0.00024657,2]
[320092722,1711150240064,-7188.71,0.00024657,2]
[320092724,1711150240073,-848.53,0.00024657,2]
[320092726,1711150240083,-618.80697838,0.00024657,2]
[320092728,1711150240092,-500.0,0.00024657,2]
[320092730,1711150240101,-500.0,0.00024657,2]
[320092732,1711150240110,-500.0,0.00024657,2]
[320092734,1711150240119,-1285.65,0.00024657,2]
[320092736,1711150240127,-1214.81,0.00024657,2]
[320092738,1711150240136,-500.0,0.00024657,2]
[320092740,1711150240146,-500.0,0.00024657,2]
[320092742,1711150240157,-87708.39085564,0.00025,2]
[320092744,1711150240166,-2657.68451481,0.00025105,2]
[320092746,1711150240175,-201.8484782,0.000252,2]
[320092748,1711150240184,-201.8484782,0.000252,2]
[320092750,1711150240193,-306.0,0.000252,2]
[320092752,1711150240202,-201.8484782,0.000252,2]
[320092754,1711150240211,-201.8484782,0.000252,2]
[320092756,1711150240220,-201.8484782,0.000252,2]
[320092758,1711150240229,-407.4537908,0.000252,2]
[320092760,1711150240238,-500.0,0.00025205,2]
[320092762,1711150240247,-500.0,0.00025205,2]
[320092764,1711150240256,-500.0,0.00025205,2]
[320092766,1711150240264,-500.0,0.00025205,2]
[320092768,1711150240273,-410.9932973,0.00025205,2]
[320092770,1711150240282,-500.0,0.00025205,2]
[320092772,1711150240291,-500.0,0.00025205,2]
[320092774,1711150240300,-500.0,0.00025205,2]
[320092776,1711150240309,-500.0,0.00025205,2]
[320092778,1711150240318,-241.28784113,0.00025205,2]
[320092780,1711150240327,-500.0,0.00025205,2]
[320092782,1711150240335,-500.0,0.00025205,2]
[320092784,1711150240345,-500.0,0.00025205,2]
[320092786,1711150240354,-500.0,0.00025205,2]
[320092787,1711150240362,-521.16,0.00025205,2]
[320092790,1711150240376,-500.0,0.00025205,2]
[320092791,1711150240386,-500.0,0.00025205,2]
[320092793,1711150240397,-689.2,0.00025205,2]
[320092795,1711150240407,-1273.73,0.00025205,2]
[320092797,1711150240418,-500.0,0.00025205,2]
[320092799,1711150240428,-500.0,0.00025205,2]
[320092801,1711150240438,-644.89,0.00025205,2]
[320092803,1711150240448,-500.0,0.00025205,2]
[320092805,1711150240460,-993.48,0.00025205,2]
[320092807,1711150240469,-987.09,0.00025205,2]
[320092809,1711150240478,-500.0,0.00025205,2]
[320092811,1711150240489,-500.0,0.00025205,2]
[320092813,1711150240499,-500.0,0.00025205,2]
[320092815,1711150240508,-500.0,0.00025205,2]
[320092817,1711150240517,-500.0,0.00025205,2]
[320092819,1711150240526,-523.81,0.00025205,2]
[320092821,1711150240535,-500.0,0.00025205,2]
[320092823,1711150240545,-500.0,0.00025205,2]
[320092825,1711150240554,-500.0,0.00025205,2]
[320092827,1711150240563,-628.5,0.00025205,2]
[320092829,1711150240572,-500.0,0.00025205,2]
[320092831,1711150240581,-500.0,0.00025205,2]
[320092833,1711150240591,-2101.45,0.00025205,2]
[320092835,1711150240601,-500.0,0.00025205,2]
[320092837,1711150240610,-500.0,0.00025205,2]
[320092839,1711150240619,-500.0,0.00025205,2]
[320092841,1711150240629,-500.0,0.00025205,2]
[320092843,1711150240637,-500.0,0.00025205,2]
[320092845,1711150240650,-500.0,0.00025205,2]
[320092847,1711150240660,-500.0,0.00025205,2]
[320092849,1711150240670,-500.0,0.00025205,2]
[320092851,1711150240679,-500.0,0.00025205,2]
[320092852,1711150240688,-500.0,0.00025205,2]
[320092854,1711150240697,-500.0,0.00025205,2]
[320092857,1711150240707,-500.0,0.00025205,2]
[320092859,1711150240717,-500.0,0.00025205,2]
[320092860,1711150240726,-500.0,0.00025205,2]
[320092862,1711150240736,-3440.28,0.00025205,2]
[320092864,1711150240745,-500.0,0.00025205,2]
[320092866,1711150240755,-500.0,0.00025205,2]
[320092868,1711150240765,-511.36,0.00025205,2]
[320092870,1711150240774,-1365.53,0.00025205,2]
[320092872,1711150240784,-500.0,0.00025205,2]
[320092874,1711150240793,-2107.61,0.00025205,2]
[320092877,1711150240803,-1320.71,0.00025205,2]
[320092879,1711150240812,-500.0,0.00025205,2]
[320092880,1711150240822,-19668.55,0.00025205,2]
[320092883,1711150240831,-500.0,0.00025205,2]
[320092884,1711150240841,-500.0,0.00025205,2]
[320092886,1711150240851,-1072.15,0.00025205,2]
[320092888,1711150240860,-2899.07,0.00025205,2]
[320092890,1711150240870,-500.0,0.00025205,2]
[320092892,1711150240879,-500.0,0.00025205,2]
[320092894,1711150240889,-1090.97,0.00025205,2]
[320092896,1711150240902,-1483.73,0.00025205,2]
[320092898,1711150240912,-500.0,0.00025205,2]
[320092899,1711150240922,-500.0,0.00025205,2]
[320092900,1711150240932,-500.0,0.00025205,2]
[320092901,1711150240943,-1359.64,0.00025205,2]
[320092902,1711150240953,-500.0,0.00025205,2]
[320092903,1711150240963,-569.17,0.00025205,2]
[320092904,1711150240973,-500.0,0.00025205,2]
[320092905,1711150240983,-501.79,0.00025205,2]
[320092907,1711150240993,-14470.36,0.00025205,2]
[320092909,1711150241003,-500.0,0.00025205,2]
[320092911,1711150241012,-1860.0,0.00025205,2]
[320092913,1711150241021,-500.0,0.00025205,2]
[320092915,1711150241031,-500.0,0.00025205,2]
[320092917,1711150241041,-500.0,0.00025205,2]
[320092919,1711150241050,-1523.88,0.00025205,2]
[320092921,1711150241059,-500.0,0.00025205,2]
[320092923,1711150241068,-15482.38,0.00025205,2]
[320092925,1711150241077,-500.0,0.00025205,2]
[320092927,1711150241087,-500.0,0.00025205,2]
[320092929,1711150241096,-362.36989471,0.00025205,2]
[320092931,1711150241105,-259.10232383,0.00025205,2]
[320092962,1711150241401,-500.0,0.00024657,2]
[320092964,1711150241411,-359.01767617,0.00025205,2]
[320092966,1711150241421,-1172.31,0.00025205,2]
[320092968,1711150241430,-500.0,0.00025205,2]
[320092970,1711150241440,-500.0,0.00025205,2]
[320092972,1711150241451,-500.0,0.00025205,2]
[320092974,1711150241460,-500.0,0.00025205,2]
[320092976,1711150241469,-1587.69,0.00025205,2]
[320092978,1711150241479,-500.0,0.00025205,2]
[320092980,1711150241487,-17702.22,0.00025205,2]
[320092982,1711150241496,-500.0,0.00025205,2]
[320092984,1711150241506,-786.81,0.00025205,2]
[320092986,1711150241515,-500.0,0.00025205,2]
[320092988,1711150241524,-500.0,0.00025205,2]
[320092990,1711150241533,-500.0,0.00025205,2]
[320092992,1711150241542,-500.0,0.00025205,2]
[320092994,1711150241551,-3860.25,0.00025205,2]
[320092995,1711150241560,-3007.45,0.00025205,2]
[320092998,1711150241570,-1117.82,0.00025205,2]
[320093000,1711150241580,-500.0,0.00025205,2]
[320093002,1711150241589,-21749.7,0.00025205,2]
[320093003,1711150241599,-500.0,0.00025205,2]
[320093005,1711150241608,-500.0,0.00025205,2]
[320093008,1711150241618,-500.0,0.00025205,2]
[320093009,1711150241627,-1289.75,0.00025205,2]
[320093012,1711150241637,-7188.71,0.00025205,2]
[320093014,1711150241647,-848.53,0.00025205,2]
[320093016,1711150241656,-500.0,0.00025205,2]
[320093018,1711150241668,-500.0,0.00025205,2]
[320093020,1711150241677,-580.19519692,0.00025205,2]
[320093021,1711150241686,-1214.81,0.00025205,2]
[320093023,1711150241695,-1285.65,0.00025205,2]
[320093025,1711150241705,-500.0,0.00025205,2]
[320093027,1711150241714,-500.0,0.00025205,2]
[320093029,1711150241724,-153.0,0.00025342,2]
[320093032,1711150241733,-194.35359503,0.0002545,2]
[320093034,1711150241744,-201.8484782,0.00025479,2]
[320093036,1711150241754,-201.8484782,0.00025479,2]
[320093038,1711150241764,-201.8484782,0.00025479,2]
[320093040,1711150241773,-201.8484782,0.00025479,2]
[320093053,1711150241892,-201.8484782,0.00025479,2]
[320093055,1711150241904,-201.8484782,0.00025479,2]
[320093057,1711150241913,-201.8484782,0.00025479,2]
[320093059,1711150241924,-151.80276999,0.00025501,2]
[320093061,1711150241933,-153.0,0.00025616,2]
[320093063,1711150241943,-153.0,0.00025671,2]
[320093065,1711150241952,-153.0,0.00025671,2]
[320093067,1711150241961,-500.0,0.00025753,2]
[320093069,1711150241971,-500.0,0.00025753,2]
[320093071,1711150241982,-500.0,0.00025753,2]
[320093073,1711150241991,-500.0,0.00025753,2]
[320093076,1711150242001,-500.0,0.00025753,2]
[320093078,1711150242010,-209.72640167,0.00025753,2]
[320093080,1711150242020,-500.0,0.00025753,2]
[320093082,1711150242029,-500.0,0.00025753,2]
[320093084,1711150242039,-500.0,0.00025753,2]
[320093086,1711150242048,-295.84600888,0.00025753,2]
[320093088,1711150242059,-521.16,0.00025753,2]
[320093090,1711150242068,-500.0,0.00025753,2]
[320093092,1711150242077,-689.2,0.00025753,2]
[320093094,1711150242087,-1273.73,0.00025753,2]
[320093096,1711150242096,-644.89,0.00025753,2]
[320093098,1711150242105,-500.0,0.00025753,2]
[320093100,1711150242114,-993.48,0.00025753,2]
[320093102,1711150242123,-987.09,0.00025753,2]
[320093104,1711150242132,-500.0,0.00025753,2]
[320093106,1711150242141,-500.0,0.00025753,2]
[320093108,1711150242152,-523.81,0.00025753,2]
[320093110,1711150242161,-500.0,0.00025753,2]
[320093112,1711150242170,-500.0,0.00025753,2]
[320093114,1711150242179,-628.5,0.00025753,2]
[320093116,1711150242188,-500.0,0.00025753,2]
[320093118,1711150242197,-500.0,0.00025753,2]
[320093120,1711150242207,-2101.45,0.00025753,2]
[320093122,1711150242216,-500.0,0.00025753,2]
[320093124,1711150242226,-500.0,0.00025753,2]
[320093125,1711150242235,-500.0,0.00025753,2]
[320093128,1711150242245,-151.0,0.00025753,2]
[320093130,1711150242254,-500.0,0.00025753,2]
[320093132,1711150242264,-500.0,0.00025753,2]
[320093134,1711150242273,-151.0,0.00025753,2]
[320093136,1711150242286,-500.0,0.00025753,2]
[320093138,1711150242295,-500.0,0.00025753,2]
[320093140,1711150242304,-500.0,0.00025753,2]
[320093142,1711150242313,-151.0,0.00025753,2]
[320093144,1711150242322,-500.0,0.00025753,2]
[320093146,1711150242331,-500.0,0.00025753,2]
[320093148,1711150242340,-3440.28,0.00025753,2]
[320093150,1711150242350,-164.644053,0.00025753,2]
[320093152,1711150242360,-164.644053,0.00025753,2]
[320093154,1711150242370,-500.0,0.00025753,2]
[320093156,1711150242379,-511.36,0.00025753,2]
[320093158,1711150242388,-1365.53,0.00025753,2]
[320093160,1711150242399,-500.0,0.00025753,2]
[320093162,1711150242408,-2107.61,0.00025753,2]
[320093164,1711150242417,-1320.71,0.00025753,2]
[320093166,1711150242426,-297.11841611,0.00025753,2]
[320093168,1711150242435,-18427.31608337,0.00025753,2]
[320093281,1711150243307,-1241.23391663,0.00025753,2]
[320093284,1711150243318,-500.0,0.00025753,2]
[320093286,1711150243327,-500.0,0.00025753,2]
[320093288,1711150243337,-1072.15,0.00025753,2]
[320093290,1711150243346,-2899.07,0.00025753,2]
[320093292,1711150243356,-500.0,0.00025753,2]
[320093294,1711150243366,-500.0,0.00025753,2]
[320093296,1711150243376,-1090.97,0.00025753,2]
[320093298,1711150243386,-1483.73,0.00025753,2]
[320093300,1711150243398,-151.0,0.00025753,2]
[320093302,1711150243408,-500.0,0.00025753,2]
[320093304,1711150243418,-1359.64,0.00025753,2]
[320093306,1711150243427,-584.32890636,0.00025753,2]
[320093308,1711150243437,-569.17,0.00025753,2]
[320093310,1711150243446,-500.0,0.00025753,2]
[320093312,1711150243456,-501.79,0.00025753,2]
[320093314,1711150243466,-14470.36,0.00025753,2]
[320093316,1711150243476,-500.0,0.00025753,2]
[320093318,1711150243485,-1860.0,0.00025753,2]
[320093320,1711150243494,-479.46742238,0.00025753,2]
[320093322,1711150243506,-366.92651925,0.00025753,2]
[320093324,1711150243516,-1523.88,0.00025753,2]
[320093326,1711150243527,-500.0,0.00025753,2]
[320093329,1711150243537,-500.0,0.00025753,2]
[320093331,1711150243547,-15482.38,0.00025753,2]
[320093333,1711150243556,-500.0,0.00025753,2]
[320093335,1711150243565,-618.12,0.00025753,2]
[320093337,1711150243575,-1172.31,0.00025753,2]
[320093339,1711150243584,-500.0,0.00025753,2]
[320093341,1711150243593,-500.0,0.00025753,2]
[320093343,1711150243603,-500.0,0.00025753,2]
[320093345,1711150243612,-500.0,0.00025753,2]
[320093347,1711150243621,-1587.69,0.00025753,2]
[320093349,1711150243631,-500.0,0.00025753,2]
[320093351,1711150243640,-7365.90672406,0.00025753,2]
[320093471,1711150246352,-294.60978908,0.00025653,2]
[320093472,1711150246363,-10336.31327594,0.00025753,2]
[320093473,1711150246377,-500.0,0.00025753,2]
[320093474,1711150246386,-786.81,0.00025753,2]
[320093475,1711150246396,-567.30309527,0.00025753,2]
[320093476,1711150246406,-500.0,0.00025753,2]
[320093477,1711150246416,-501.60077712,0.00025753,2]
[320093478,1711150246426,-500.0,0.00025753,2]
[320093479,1711150246435,-3860.25,0.00025753,2]
[320093480,1711150246445,-3007.45,0.00025753,2]
[320093481,1711150246455,-1117.82,0.00025753,2]
[320093482,1711150246465,-500.0,0.00025753,2]
[320093483,1711150246474,-21749.7,0.00025753,2]
[320093484,1711150246484,-500.0,0.00025753,2]
[320093485,1711150246493,-500.0,0.00025753,2]
[320093486,1711150246503,-1289.75,0.00025753,2]
[320093487,1711150246512,-7188.71,0.00025753,2]
[320093488,1711150246522,-848.53,0.00025753,2]
[320093489,1711150246532,-500.0,0.00025753,2]
[320093490,1711150246543,-568.44862495,0.00025753,2]
[320093491,1711150246554,-1285.65,0.00025753,2]
[320093492,1711150246564,-1214.81,0.00025753,2]
[320093493,1711150246573,-500.0,0.00025753,2]
[320093494,1711150246582,-471.19100394,0.00025753,2]
[320093495,1711150246592,-306.0,0.00025804,2]
[320093496,1711150246601,-243.2793979,0.00025804,2]
[320093497,1711150246612,-155.02325349,0.00026,2]
[320093498,1711150246622,-329.83998041,0.00026038,2]
[320093499,1711150246631,-1500.0,0.00026201,2]
[320093500,1711150246641,-281.56254263,0.00026301,2]
[320093501,1711150246651,-597.6359695,0.00026301,2]
[320093502,1711150246661,-500.0,0.00026301,2]
[320093503,1711150246670,-512.10467803,0.00026301,2]
[320093504,1711150246680,-500.0,0.00026301,2]
[320093505,1711150246689,-151.0,0.00026301,2]
[320093506,1711150246698,-500.0,0.00026301,2]
[320093507,1711150246708,-500.0,0.00026301,2]
[320093508,1711150246718,-521.16,0.00026301,2]
[320093509,1711150246727,-500.0,0.00026301,2]
[320093510,1711150246736,-689.2,0.00026301,2]
[320093511,1711150246746,-1273.73,0.00026301,2]
[320093512,1711150246756,-644.89,0.00026301,2]
[320093513,1711150246768,-500.0,0.00026301,2]
[320093514,1711150246778,-993.48,0.00026301,2]
[320093515,1711150246787,-987.09,0.00026301,2]
[320093516,1711150246797,-500.0,0.00026301,2]
[320093517,1711150246807,-500.0,0.00026301,2]
[320093518,1711150246817,-523.81,0.00026301,2]
[320093519,1711150246827,-500.0,0.00026301,2]
[320093520,1711150246836,-500.0,0.00026301,2]
[320093521,1711150246845,-628.5,0.00026301,2]
[320093522,1711150246854,-500.0,0.00026301,2]
[320093523,1711150246864,-500.0,0.00026301,2]
[320093524,1711150246873,-2101.45,0.00026301,2]
[320093525,1711150246882,-500.0,0.00026301,2]
[320093526,1711150246891,-500.0,0.00026301,2]
[320093527,1711150246900,-221.173067,0.00026301,2]
[320093528,1711150246910,-500.0,0.00026301,2]
[320093529,1711150246919,-500.0,0.00026301,2]
[320093530,1711150246928,-151.0,0.00026301,2]
[320093531,1711150246937,-500.0,0.00026301,2]
[320093532,1711150246946,-500.0,0.00026301,2]
[320093533,1711150246955,-151.0,0.00026301,2]
[320093534,1711150246964,-500.0,0.00026301,2]
[320093535,1711150246973,-500.0,0.00026301,2]
[320093536,1711150246982,-3440.28,0.00026301,2]
[320093537,1711150246991,-164.644053,0.00026301,2]
[320093538,1711150247000,-164.644053,0.00026301,2]
[320093539,1711150247009,-500.0,0.00026301,2]
[320093540,1711150247018,-511.36,0.00026301,2]
[320093541,1711150247026,-1365.53,0.00026301,2]
[320093542,1711150247035,-500.0,0.00026301,2]
[320093543,1711150247044,-2107.61,0.00026301,2]
[320093544,1711150247053,-1320.71,0.00026301,2]
[320093545,1711150247062,-19668.55,0.00026301,2]
[320093546,1711150247071,-500.0,0.00026301,2]
[320093547,1711150247080,-500.0,0.00026301,2]
[320093548,1711150247089,-1072.15,0.00026301,2]
[320093549,1711150247098,-2899.07,0.00026301,2]
[320093550,1711150247108,-500.0,0.00026301,2]
[320093551,1711150247117,-500.0,0.00026301,2]
[320093552,1711150247126,-1090.97,0.00026301,2]
[320093553,1711150247135,-1483.73,0.00026301,2]
[320093554,1711150247144,-500.0,0.00026301,2]
[320093555,1711150247154,-1359.64,0.00026301,2]
[320093556,1711150247163,-569.17,0.00026301,2]
[320093557,1711150247172,-501.79,0.00026301,2]
[320093558,1711150247181,-14470.36,0.00026301,2]
[320093559,1711150247190,-500.0,0.00026301,2]
[320093560,1711150247200,-1860.0,0.00026301,2]
[320093561,1711150247209,-1523.88,0.00026301,2]
[320093562,1711150247219,-500.0,0.00026301,2]
[320093563,1711150247228,-500.0,0.00026301,2]
[320093564,1711150247238,-15482.38,0.00026301,2]
[320093565,1711150247248,-500.0,0.00026301,2]
[320093566,1711150247258,-618.12,0.00026301,2]
[320093567,1711150247267,-1172.31,0.00026301,2]
[320093568,1711150247277,-500.0,0.00026301,2]
[320093569,1711150247287,-500.0,0.00026301,2]
[320093570,1711150247297,-500.0,0.00026301,2]
[320093571,1711150247306,-500.0,0.00026301,2]
[320093572,1711150247316,-1587.69,0.00026301,2]
[320093573,1711150247326,-17702.22,0.00026301,2]
[320093574,1711150247336,-786.81,0.00026301,2]
[320093575,1711150247346,-500.0,0.00026301,2]
[320093576,1711150247356,-500.0,0.00026301,2]
[320093577,1711150247365,-3860.25,0.00026301,2]
[320093578,1711150247376,-3007.45,0.00026301,2]
[320093579,1711150247386,-1117.82,0.00026301,2]
[320093580,1711150247395,-591.31827404,0.00026301,2]
[320093581,1711150247407,-21749.7,0.00026301,2]
[320093582,1711150247417,-500.0,0.00026301,2]
[320093583,1711150247428,-500.0,0.00026301,2]
[320093584,1711150247438,-1289.75,0.00026301,2]
[320093585,1711150247448,-7188.71,0.00026301,2]
[320093586,1711150247458,-848.53,0.00026301,2]
[320093587,1711150247467,-500.0,0.00026301,2]
[320093588,1711150247477,-1285.65,0.00026301,2]
[320093589,1711150247486,-1214.81,0.00026301,2]
[320093590,1711150247495,-500.0,0.00026301,2]
[320093591,1711150247506,-153.0,0.00026493,2]
[320093592,1711150247516,-153.0,0.00026493,2]
[320093593,1711150247526,-153.0,0.00026493,2]
[320093594,1711150247535,-153.0,0.00026493,2]
[320093595,1711150247544,-400.0,0.000267,2]
[320093596,1711150247554,-153.0,0.00026822,2]
[320093597,1711150247563,-153.0,0.00026822,2]
[320093598,1711150247574,-500.0,0.00026849,2]
[320093599,1711150247584,-500.0,0.00026849,2]
[320093600,1711150247593,-151.0,0.00026849,2]
[320093601,1711150247603,-500.0,0.00026849,2]
[320093602,1711150247612,-500.0,0.00026849,2]
[320093603,1711150247621,-521.16,0.00026849,2]
[320093604,1711150247630,-500.0,0.00026849,2]
[320093605,1711150247640,-689.2,0.00026849,2]
[320093606,1711150247649,-1273.73,0.00026849,2]
[320093607,1711150247660,-644.89,0.00026849,2]
[320093608,1711150247672,-500.0,0.00026849,2]
[320093609,1711150247682,-993.48,0.00026849,2]
[320093610,1711150247691,-987.09,0.00026849,2]
[320093611,1711150247701,-500.0,0.00026849,2]
[320093612,1711150247711,-523.81,0.00026849,2]
[320093613,1711150247721,-500.0,0.00026849,2]
[320093614,1711150247730,-628.5,0.00026849,2]
[320093615,1711150247739,-500.0,0.00026849,2]
[320093616,1711150247748,-500.0,0.00026849,2]
[320093617,1711150247757,-2101.45,0.00026849,2]
[320093618,1711150247767,-500.0,0.00026849,2]
[320093619,1711150247776,-500.0,0.00026849,2]
[320093620,1711150247785,-500.0,0.00026849,2]
[320093621,1711150247795,-500.0,0.00026849,2]
[320093623,1711150247804,-151.0,0.00026849,2]
[320093625,1711150247813,-500.0,0.00026849,2]
[320093626,1711150247822,-151.0,0.00026849,2]
[320093629,1711150247832,-500.0,0.00026849,2]
[320093630,1711150247842,-500.0,0.00026849,2]
[320093632,1711150247888,-3440.28,0.00026849,2]
[320093635,1711150247914,-164.644053,0.00026849,2]
[320093637,1711150247924,-164.644053,0.00026849,2]
[320093638,1711150247934,-500.0,0.00026849,2]
[320093653,1711150248056,-511.36,0.00026849,2]
[320093655,1711150248065,-1365.53,0.00026849,2]
[320093657,1711150248074,-500.0,0.00026849,2]
[320093659,1711150248083,-2107.61,0.00026849,2]
[320093661,1711150248092,-1320.71,0.00026849,2]
[320093663,1711150248101,-19668.55,0.00026849,2]
[320093664,1711150248110,-435.21989506,0.00026849,2]